{"text_format":"1","workbook":"xlsx","n_sheets":12,"sheets":["Uitvraag","Invulsheet","Invulsheet (3)","Inleiding","Algemene informatie","Codelijsten","Voorbeeld","Controlesheet","change log","Rekenblad","Blad1 (2)","Versleutelmodule"],"not_rendered":{"charts":0,"images":3,"macros":1,"external_links":0,"defined_names":0,"comments":0,"pivot_tables":0},"unopened":[],"bounds":{"document_bytes":16777216,"sheet_cells":100000,"rows_first":2000,"rows_last":500,"rows_between":2000,"halvings":0,"cell_chars":16384,"cell_head_chars":4096},"cells_cut":0,"cells_raw":0,"read":"whole","date_system":"1900"}

{"sheet":"Uitvraag","index":0,"n_rows":13,"n_cols":153,"rows_kept":13,"cut":false,"hidden":false,"merged":[]}
[]
["AGB","Gemeentecode","BSN","Geslacht","Geboortedatum (jjjjmmdd)","Postcode (1111AA)","Wet","Arrangementscode ","Arrangement complexiteit","Startdatum (jjjjmmdd)","Einddatum (jjjjmmdd)","Aantal uren","Aantal dagdelen","Aantal etmalen","Doelgroep","Verblijf: \nVerblijfszwaarte","Groeps- en verblijfsarrangementen: Groepsgrootte","Verwijzer (CBS-codering)","Perspectief","Reden beëindiging Jeugdhulp","Emotionele problematiek","Gedragsproblematiek","Persoonlijkheids- of identiteitsproblematiek","Verslaving/ gebruik van middelen","Sociale vaardigheidsproblematiek","Overige psychosociale problematiek","Lichamelijke ziekte, aandoening of handicap","Gebrekkige zelfverzorging, -hygiene of ongezonde levenswijze","Lichamelijke functies gerelateerde klachten","Overige problematiek lichamelijke gezondheid","Problemen in de cognitieve ontwikkeling","Andere problemen met cognitieve ontwikkeling of vaardigheden","Ontoereikende kwaliteiten van de opvoeding","Problemen in de ouder/ kindrelatie","Mishandeling in de gezinsomgeving","Instabiele opvoedingssituatie","Problematiek ontstaan door problematiek van andere gezinsleden of het sociaal netwerk","Problemen vanwege de omstandigheden in het gezin (bv huisvesting)","Problemen op de speelzaal, school of werk","Problemen met relaties, vrienden, sociaal netwerk of in de vrije tijd","Problemen in de omstandigheden van de jeugdige (bv huisvesting)",null,null,"MBO","HBO","HBO+","WO","WO+","Gezinshuis","Zelfstandigheid","Ontwikkelingsgericht","Intensief Specialistisch","Zeer Intensief",null,"01 - Gemeentelijke toegang","02 - Huisarts","03 - Jeugdarts","04 - Gecertificeerde instelling","05 - Medisch specialist","06 - Geen verwijzer","07 - Onbekend","08 - Rechter, Raad voor de Kinderbescherming of Officier van Justitie",null,"0888","0899","1903","1729","0917","0928","0882","0935","0938","0951","0881","0962","0965","1883","0971","0981","0994","0986",null,"M","V","O",null,"02 - Diagnostiek","03 - Begeleiden","04 - Behandelen",null,null,"02 - Overlijden","20 - Levering zorg of ondersteuning is beëindigd","31 - Jeugdhulp is volgens plan beëindigd","32 - De cliënt heeft de hulp eenzijdig beëindigd","33 - De hulpaanbieder heeft de hulp eenzijdig beëindigd","34 - Cliënt en hulpaanbieder hebben de hulp in overeenstemming beëindigd","35 - De hulp is wegens externe omstandigheden beëindigd (bijv. verhuizing van de cliënt)",null,34100,35100,37000,40100,51200,51300,51400,51500,61100,61200,61300,61110,61210,61220,61230,61240,62100,80110,80120,80210,80220,80310,80320,82100,82200,82300,83100,83110,83120,83210,83220,83310,83320,83400,84110,84120,84210,84220,84310,84320,84400,85110,85120,85210,85220,85310,85320,90100,90200,90300,91000,92100,92200,92300]
["22456781","0899","123456789","M",20000101,"1122AA","Jeugd",85220,"WO",20170101,20180202,null,90,null,"Gedragsproblematiek",null,null,"03 - Jeugdarts","03 - Begeleiden","20 - Levering zorg of ondersteuning is beëindigd"]
["22456781","0917","234567891","O",null,"2233BB","Jeugd",61200,"HBO+",20170101,20180202,null,null,50,"Lichamelijke functies gerelateerde klachten","Gezinshuis",8,"08 - Rechter, Raad voor de Kinderbescherming of Officier van Justitie","03 - Begeleiden","02 - Overlijden"]
["224567",null,"212874056",null,20120105,"3344CC",null,80120,"WO+",20170101,20180202,null,null,null,"Verslaving/ gebruik van middelen",null,5,null,null,"31 - Jeugdhulp is volgens plan beëindigd"]
["22457598","0928",null,"M",20080607,"5566EE","Jeugd",51400,"MBO",20170101,20180202,"50 uren",null,null,"Emotionele problematiek",null,null,"01 - Gemeentelijke toegang","02 - Diagnostiek"]
["22456781","0882","580350654","V",20091201,null,"Jeugd",84110,"HBO",20170101,20190202,50,null,null,"Problemen op de speelzaal, school of werk",null,4,"01 - Gemeentelijke toegang","04 - Behandelen","33 - De hulpaanbieder heeft de hulp eenzijdig beëindigd"]
["03698527","0917","330237548","O",20030328,"7788GG","Jeugd",null,null,20170101,20190202,50,null,null,null,null,null,"04 - Gecertificeerde instelling","04 - Behandelen","33 - De hulpaanbieder heeft de hulp eenzijdig beëindigd"]
["03698527","1883","535897819","M",20111225,"8899HH","Jeugd",35100,"HBO",20170101,20190202,50,null,null,"Gedragsproblematiek",null,null,"01 - Gemeentelijke toegang","03 - Begeleiden"]
["22456781","0917","234567891","O",null,"2233BB","Jeugd",61210,"HBO+",20180101,20190202,null,null,50,"Lichamelijke functies gerelateerde klachten","Zelfstandigheid",4,"08 - Rechter, Raad voor de Kinderbescherming of Officier van Justitie","03 - Begeleiden","02 - Overlijden"]
["22456781","0917","234567891","O",null,"2233BB","Jeugd",61220,"HBO+",20180101,20190202,null,null,50,"Lichamelijke functies gerelateerde klachten","Ontwikkelingsgericht",8,"08 - Rechter, Raad voor de Kinderbescherming of Officier van Justitie","03 - Begeleiden","02 - Overlijden"]
["22456781","0917","234567891","O",null,"2233BB","Jeugd",61230,"HBO+",20180101,20180202,null,null,50,"Lichamelijke functies gerelateerde klachten","Zeer Intensief",8,"08 - Rechter, Raad voor de Kinderbescherming of Officier van Justitie","03 - Begeleiden","02 - Overlijden"]
["22456781","0917","234567891","O",20121105,"2233BB","Jeugd",61240,"HBO+",20180101,20180202,null,null,50,"Lichamelijke functies gerelateerde klachten","Intensief Specialistisch",8,"08 - Rechter, Raad voor de Kinderbescherming of Officier van Justitie","03 - Begeleiden","02 - Overlijden"]

{"sheet":"Invulsheet","index":1,"n_rows":6,"n_cols":21,"rows_kept":6,"cut":false,"hidden":true,"merged":[[1,10,1,11],[2,10,2,11],[2,18,3,18],[3,10,3,11]]}
[]
[null,null,null,null,null,null,"Contact-","Naam",null,"Naam organisatie",null,null,null,null,null,"Outcome-gegevens (optioneel*)",null,null,"Controlesheet**:"]
[null,"Verslagperiode:","2018-01-01","t/m","2018-06-30",null,"gegevens","Email",null,"KVK-nummer",null,null,null,null,null,null,null,null,"=ALS(Controlesheet!G33<>0;ALS(Controlesheet!G33=1;\"1  onjuiste rij\";Controlesheet!G33&\" onjuiste rijen\");\"CORRECTE LEVERING!\")",null,"*zie algemene informatie"]
[null,null,null,null,null,null,null,"Telefoon",null,"AGB-instellingscode",null,null,null,null,null,null,null,null,null,null,"**controle t/m regel 300, exclusief outcome"]
[]
[null,"BSN","Geslacht","Geboortedatum","Postcode","Gemeente","Datum aanvang jeugdhulp","Gestart met crisis","Verwijzer","Hulpvorm","Perspectief","Datum einde jeugdhulp","Reden beëindiging jeugdhulp",null,null,"Cliënt: Cliënt-tevredenheid","Cliënt: Zonder hulp verder","Ouder: Cliënt-tevredenheid","Ouder: Zonder hulp verder"]

{"sheet":"Invulsheet (3)","index":2,"n_rows":7,"n_cols":17,"rows_kept":7,"cut":false,"hidden":true,"merged":[[1,10,1,11],[2,5,2,6]]}
[]
[null,null,null,null,null,null,null,null,"Contact-","Naam",""]
[null,"Verslagperiode",null,null,"t/m",null,null,null,"gegevens","Email",""]
[null,null,null,null,null,null,null,null,null,"Telefoon",""]
[]
[null,"BSN","Geslacht","Geboortedatum","Postcode","Gemeente","Datum aanvang jeugdhulp","Verwijzer","Hulpvorm","Perspectief","Datum einde jeugdhulp","Reden beëindiging jeugdhulp"]
[null,"BSN","Geslacht","Geboortedatum","Postcode","Gemeente","Datum aanvang jeugdhulp","Gestart met crisis","Verwijzer","Hulpvorm","Perspectief","Datum einde jeugdhulp","Reden beëindiging jeugdhulp","Cliënt: Cliënt-tevredenheid","Cliënt: Zonder hulp verder","Ouder: Cliënt-tevredenheid","Ouder: Zonder hulp verder"]

{"sheet":"Inleiding","index":3,"n_rows":36,"n_cols":5,"rows_kept":36,"cut":false,"hidden":true,"merged":[[17,1,17,15],[8,1,8,15],[10,1,10,15],[13,1,13,15],[14,1,14,15],[16,1,16,15],[18,1,18,15],[21,1,21,15],[24,1,24,15],[27,1,27,15],[29,1,29,15]]}
[]
[null,"Beleidsinformatie Jeugdhulp"]
[]
[]
[null,"Verslagperiode:",null,null,"januari t/m juni 2018"]
[]
[]
[null,"Inleiding"]
[null,"Op 1 januari 2015 is de nieuwe Jeugdwet in werking getreden. Deze wet voorziet erin dat er betrouwbare gegevens beschikbaar komen over jeugdhulp in de nieuwe situatie. Met deze cijfers krijgen ministeries, gemeenten en andere belangstellenden een scherp beeld van de jeugdhulp in Nederland. Het Centraal Bureau voor de Statistiek (CBS) zal deze informatie samenstellen in de vorm van tabellen en rapportages."]
[]
[null,"Om de cijfers over jeugdhulp te kunnen samenstellen, heeft het CBS de brongegevens nodig van jeugdhulpaanbieders. De Jeugdwet bepaalt dat zij twee maal per jaar gegevens op persoonsniveau aan het CBS moeten leveren."]
[]
[null,"Wat vraagt het CBS aan u?"]
[null,"Het CBS vraagt u om de gegevens over jeugdhulp die uw organisatie heeft verleend in bovengenoemde verslagperiode naar het CBS te versturen. U dient alleen gegevens aan te leveren over de jeugdhulp die in natura is geboden. Gegevens over de jeugdhulp op basis van PGB dienen niet aangeleverd te worden. Zie ook paragraaf 1.3 van het Informatieprotocol beleidsinformatie jeugd."]
[null,"Deze aanlevering kunt u doen door de gegevens in te voeren in het tabblad 'Invulsheet' in dit bestand. Met behulp van het tabblad Controlesheet kunt u zien of alles correct is ingevuld. Vervolgens uploadt u het hele bestand via een beveiligde verbinding naar het CBS. In de brief die het CBS u hierover heeft gestuurd, staan verdere details, waaronder uw inloggegevens voor de beveiligde verbinding."]
[]
[null,"Naast deze standaard spreadsheet zijn er nog twee andere mogelijkheden om de informatie aan te leveren. "]
[null,"1 - U kunt de gevraagde gegevens aanleveren via een ascii-bestand. De exacte beschrijving van de aan te leveren gegevens is te vinden op de website www.cbs.nl/jeugdzorg."]
[null,"2 - U kunt ook gebruikmaken van een elektronische vragenlijst. Hiervoor moet u voor elke cliënt die uw organisatie in de gevraagde verslagperiode jeugdhulp heeft verleend de vragen beantwoorden die automatisch op het scherm verschijnen."]
[]
[null,"Welke gegevens moet u aanleveren?"]
[null,"De informatie die u moet aanleveren, is omschreven in het Informatieprotocol Beleidsinformatie jeugd v4 (juni 2017) dat onderdeel is van de ministeriële regeling van de Jeugdwet."]
[]
[null,"Wanneer moet u de gegevens aanleveren?"]
[null,"Wij vragen u de gegevens aan te leveren uiterlijk op 22 juli 2018."]
[]
[null,"Meer informatie?"]
[null,"Als u meer wilt weten over het aanleveren van de gegevens, kunt u de website www.cbs.nl/jeugdzorg bezoeken. Op deze website staat ook meer algemene informatie over de gegevens die het CBS samenstelt over jeugdhulp. Ook de uitkomsten van het onderzoek kunt u op termijn vinden via deze website."]
[]
[null,"U kunt ook een e-mail sturen naar beleidsinformatieJeugd@cbs.nl"]
[]
[null,"Versieinformatie"]
[null,"Versienummer",null,null,5]
[null,"Subversienummer",null,null,0]
[null,"Versiedatum",null,null,"2017-10-01"]
[null,"Soort bericht",null,null,"P"]

{"sheet":"Algemene informatie","index":4,"n_rows":69,"n_cols":5,"rows_kept":69,"cut":false,"hidden":true,"merged":[[55,1,55,9],[28,1,28,9],[31,1,31,9],[36,1,36,9],[37,1,37,9],[38,1,38,9],[42,1,42,9],[46,1,46,9],[49,1,49,9],[52,1,52,9],[53,1,53,9],[54,1,54,9],[58,1,58,9],[61,1,61,9],[64,1,64,9],[66,1,66,9],[68,1,68,9]]}
[]
[null,"Overzicht variabelen"]
[]
[null,"Naam","Verplicht","Codelijst","Opmerking"]
[null,"BSN","V",null,"Zie opmerking hieronder, bij specificaties variabelen."]
[null,"Geslacht","V","Geslacht","Zie tabblad 'Codelijsten'."]
[null,"Geboortedatum","V",null,"DD-MM-JJJJ. Zie specificaties variabelen."]
[null,"Postcode","V",null,"NNNNAA, volgens woonplaatsbeginsel*. Zie specificaties variabelen."]
[null,"Gemeente","C","CBS gemeentecode","Zie tabblad 'Codelijsten'. Verplicht als postcode onbekend is,  volgens woonplaatsbeginsel*."]
[null,"Datum aanvang jeugdhulp","V",null,"DD-MM-JJJJ"]
[null,"Gestart met crisis","V","Crisis","Bij aanvang van jeugdhulp. Zie tabblad 'Codelijsten'."]
[null,"Verwijzer","V","Verwijzer","Zie tabblad 'Codelijsten'. De categorie 'onbekend' alleen gebruiken als datum aanvang voor 2015 ligt."]
[null,"Hulpvorm","V","Hulpvorm","Zie tabblad 'Codelijsten'."]
[null,"Perspectief","C","Perspectief","Verplicht als einddatum ingevuld, voor code zie tabblad 'Codelijsten'."]
[null,"Datum einde jeugdhulp","C",null,"Verplicht indien bekend, DD-MM-JJJJ."]
[null,"Reden beëindiging jeugdhulp","C","Reden beëindiging jeugdhulp","Verplicht als einddatum ingevuld, voor code zie tabblad 'Codelijsten'."]
[null,"Cliënt: Cliënttevredenheid","O",null,"Indien traject beëindigd. Score zoals gegeven door de cliënt. Rapportcijfer 1 t/m 10, waarbij 1 = volkomen nutteloos en 10 = uitstekend, veel aan gehad"]
[null,"Cliënt: Zonder hulp verder","O","Zonder hulp verder","Indien traject beëindigd. Score zoals gegeven door de cliënt. Zie tabblad 'Codelijsten'."]
[null,"Ouder: Cliënttevredenheid","O",null,"Indien traject beëindigd. Score zoals gegeven door de ouder/verzorger. Rapportcijfer 1 t/m 10, waarbij 1 = volkomen nutteloos en 10 = uitstekend, veel aan gehad"]
[null,"Ouder: Zonder hulp verder","O","Zonder hulp verder","Indien traject beëindigd. Score zoals gegeven door de ouder/verzorger. Zie tabblad 'Codelijsten'."]
[]
[null,"Kolom 'Verplicht'"]
[null,"code","naam","toelichting"]
[null,"V","Verplicht","Het gegeven is verplicht en moet gevuld zijn met een geldige waarde."]
[null,"C","Conditioneel","De conditie staat in de kolom 'Opmerking'."]
[null,"O","Optioneel","Vrijwillig"]
[]
[null,"Kolom 'Codelijst'"]
[null,"Indien een gegeven moet worden vastgelegd via een codelijst, dan bevat deze kolom de naam van de te gebruiken lijst. De codelijsten zijn opgenomen in het tabblad 'Codelijsten' in dit bestand."]
[]
[null,"Kolom 'Opmerking'"]
[null,"Als een gegeven aan een bepaalde structuur moet voldoen, als het gegeven conditioneel is of als de waarde van het gegeven afhangt van een andere variabele, dan bevat de kolom 'Opmerking' de betreffende informatie."]
[]
[null,"Specificaties variabelen"]
[]
[null,"Datumvelden"]
[null,"Datumvelden hebben de vorm DD-MM-JJJJ, oftewel: 2 cijfers voor de dag, 2 cijfers voor de maand en 4 cijfers voor het jaar."]
[null,"Datumvelden moeten een geldige datum bevatten (of leeg zijn als de betreffende datum nog onbekend is bij een conditioneel veld)."]
[null,"Geboortedatum mag 00-MM-JJJJ of 00-00-JJJJ zijn als de geboortedag resp. geboortemaand en geboortedag onbekend zijn. "]
[null,"Een ongeboren kind krijgt als geboortedatum de code 99-99-9999."]
[]
[null,"BSN"]
[null,"BSN opgeven indien bekend. Als de BSN niet bekend is, dan 999999999 invullen. Indien het een ongeboren kind betreft dan 000000000 opgeven."]
[]
[null,"Postcode"]
[null,"De gevraagde postcode is de postcode gebaseerd op het woonplaatsbeginsel*."]
[null,"De postcode heeft de vorm van NNNNAA, oftewel 4 cijfers (1e cijfer 1-9, rest 0-9) gevolgd door 2 letters (A-Z)."]
[]
[null,"Verslagperiode"]
[null,"De verslagperiode omvat bij jeugdhulp een half jaar. De aanvangsdatum en de einddatum van de verslagperiode zijn aangeduid in de tabbladen 'Inleiding' en 'Invulsheet'. "]
[]
[null,"Welke jeugdhulp telt in deze periode mee?"]
[null,"U rapporteert in dit bestand over alle jeugdhulp die gedurende deze verslagperiode is verleend. Dit betreft dus ook de hulp die al gestart is vóór aanvang van deze periode en in deze periode nog niet beëindigd is. Het gaat dus om:"]
[null,"- alle jeugdhulp die in deze verslagperiode is gestart;"]
[null,"- alle jeugdhulp die in deze verslagperiode is beëindigd;"]
[null,"- alle jeugdhulp die vóór deze verslagperiode is gestart en in deze verslagperiode nog niet is beëindigd."]
[]
[null,"Correcties"]
[null,"Als er correcties of aanvullingen bekend zijn over de voorgaande verslagperiode, dan kunt u deze doorgegeven door de vorige periode opnieuw in zijn geheel aan te leveren. U kunt zelf bepalen of correcties en aanvullende gegevens voldoende belangrijk zijn voor een nieuwe levering. Ook kan het CBS u vragen om een correctielevering. Alle gegevens die betrekking hebben op de betreffende periode moet u bij een correctielevering opnieuw versturen, ook de gegevens die niet veranderd zijn. De aanname is dat de nieuwe levering alle gegevens uit de oude levering overschrijft. Gegevens die wel in de eerdere levering zaten maar niet in de correctielevering worden als verwijderd beschouwd. Het CBS verwerkt alleen berichten die betrekking hebben op de meest actuele verslagperiode en de daaraan voorafgaande verslagperiode. Correcties over nog eerdere perioden hoeft u dus niet meer aan te leveren."]
[]
[null,"Outcome criteria (optioneel)"]
[null,"Vanaf 2018 is het mogelijk kan bij ieder jeugdhulprecord dat wordt geleverd, outcomecriteria worden meegeleverd. Het gaat om twee indicatoren:\n- Tevredenheid van de cliënt over het nut/effect van de jeugdhulp.\n- De mate waarin de cliënt zonder hulp verder kan.\nDaarbij kan er worden gescoord door de jeugdige zelf én door een ouder/opvoeder. Hierdoor kunnen per jeugdhulprecord maximaal 4 metingen worden aangeleverd."]
[null,"Voor meer achtergrondinformatie over outcome zie de website van het Nederlands Jeugd Instituut."]
[null,"Meer informatie over de aanlevering van outcome is te vinden in hoofdstuk vier van het Informatie Protocol Jeugd, juli 2017."]
[]
[null,"Testlevering"]
[null,"Indien nodig kan door een softwarleverancier een testlevering worden gedaan. Hierbij wordt het bestand gecontroleerd op alle voorwaarden maar niet meegenomen in de statistiekverwerking. Vul hiervoor een 'T' in bij Soort bericht onder kopje versieinformatie op het eerste tabblad Inleiding."]
[]
[null,"*  Zie woonplaatsbeginsel op www.vng.nl"]

{"sheet":"Codelijsten","index":5,"n_rows":431,"n_cols":3,"rows_kept":431,"cut":false,"hidden":true,"merged":[]}
[]
[null,"Codelijsten"]
[]
[null,"Geslacht"]
[null,"M","Man"]
[null,"V","Vrouw"]
[null,"O","Onbekend"]
[]
[null,"Crisis"]
[null,1,"Ja"]
[null,2,"Nee"]
[]
[null,"Verwijzer"]
[null,1,"Gemeentelijke toegang"]
[null,2,"Huisarts"]
[null,3,"Jeugdarts"]
[null,4,"Gecerticifeerde instelling"]
[null,5,"Medisch specialist"]
[null,6,"Geen verwijzer"]
[null,7,"Onbekend"]
[null,8,"Rechter, officier van Justitie, functionaris justitiële jeugdinrichting"]
[]
[null,"Hulpvorm"]
[null,1,"Jeugdhulp zonder verblijf, uitgevoerd door het wijk- of buurtteam"]
[null,2,"Jeugdhulp zonder verblijf, ambulante jeugdhulp op locatie van de aanbieder"]
[null,3,"Jeugdhulp zonder verblijf, daghulp op locatie van de aanbieder"]
[null,4,"Jeugdhulp zonder verblijf, jeugdhulp in het netwerk van de jeugdige"]
[null,11,"Jeugdhulp met verblijf, pleegzorg"]
[null,12,"Jeugdhulp met verblijf, gezinsgericht"]
[null,13,"Jeugdhulp met verblijf, gesloten plaatsing"]
[null,14,"Jeugdhulp met verblijf, anders dan bovenstaand"]
[]
[null,"Perspectief"]
[null,2,"Diagnostiek"]
[null,3,"Begeleiden"]
[null,4,"Behandelen"]
[]
[null,"Reden beëindiging jeugdhulp"]
[null,1,"Beëindigd volgens plan"]
[null,2,"Voortijdig afgesloten: in overeenstemming"]
[null,3,"Voortijdig afgesloten: eenzijdig door de cliënt"]
[null,4,"Voortijdig afgesloten: eenzijdig door de aanbieder"]
[null,5,"Voortijdig afgesloten: wegens externe omstandigheden"]
[]
[null,"Zonder hulp verder"]
[null,1,"Helemaal niet mee eens – ik heb juist een zelfde soort of zwaardere hulp nodig"]
[null,2,"Niet mee eens – maar met een lichtere vorm van hulp red ik het goed"]
[null,3,"Wel mee eens – voor nu heb ik geen verdere hulp nodig, maar ik verwacht dat ik later nog wel eens om hulp zal aankloppen"]
[null,4,"Helemaal mee eens– ik heb geen verdere hulp meer nodig"]
[]
[null,"CBS gemeentecode 2018"]
[null,"1680","Aa en Hunze"]
[null,"0738","Aalburg"]
[null,"0358","Aalsmeer"]
[null,"0197","Aalten"]
[null,"0059","Achtkarspelen"]
[null,"0482","Alblasserdam"]
[null,"0613","Albrandswaard"]
[null,"0361","Alkmaar"]
[null,"0141","Almelo"]
[null,"0034","Almere"]
[null,"0484","Alphen aan den Rijn"]
[null,"1723","Alphen-Chaam"]
[null,"0060","Ameland"]
[null,"0307","Amersfoort"]
[null,"0362","Amstelveen"]
[null,"0363","Amsterdam"]
[null,"0200","Apeldoorn"]
[null,"0003","Appingedam"]
[null,"0202","Arnhem"]
[null,"0106","Assen"]
[null,"0743","Asten"]
[null,"0744","Baarle-Nassau"]
[null,"0308","Baarn"]
[null,"0489","Barendrecht"]
[null,"0203","Barneveld"]
[null,"0005","Bedum"]
[null,"0888","Beek"]
[null,"0370","Beemster"]
[null,"0889","Beesel"]
[null,"1945","Berg en Dal"]
[null,"1724","Bergeijk"]
[null,"0893","Bergen (L.)"]
[null,"0373","Bergen (NH.)"]
[null,"0748","Bergen op Zoom"]
[null,"1859","Berkelland"]
[null,"1721","Bernheze"]
[null,"0753","Best"]
[null,"0209","Beuningen"]
[null,"0375","Beverwijk"]
[null,"0310","De Bilt"]
[null,"0585","Binnenmaas"]
[null,"1728","Bladel"]
[null,"0376","Blaricum"]
[null,"0377","Bloemendaal"]
[null,"1901","Bodegraven-Reeuwijk"]
[null,"0755","Boekel"]
[null,"0009","Ten Boer"]
[null,"1681","Borger-Odoorn"]
[null,"0147","Borne"]
[null,"0654","Borsele"]
[null,"0756","Boxmeer"]
[null,"0757","Boxtel"]
[null,"0758","Breda"]
[null,"0501","Brielle"]
[null,"1876","Bronckhorst"]
[null,"0213","Brummen"]
[null,"0899","Brunssum"]
[null,"0312","Bunnik"]
[null,"0313","Bunschoten"]
[null,"0214","Buren"]
[null,"0502","Capelle aan den IJssel"]
[null,"0383","Castricum"]
[null,"0109","Coevorden"]
[null,"1706","Cranendonck"]
[null,"0611","Cromstrijen"]
[null,"1684","Cuijk"]
[null,"0216","Culemborg"]
[null,"0148","Dalfsen"]
[null,"1891","Dantumadiel"]
[null,"0503","Delft"]
[null,"0010","Delfzijl"]
[null,"0762","Deurne"]
[null,"0150","Deventer"]
[null,"0384","Diemen"]
[null,"1774","Dinkelland"]
[null,"0221","Doesburg"]
[null,"0222","Doetinchem"]
[null,"0766","Dongen"]
[null,"0058","Dongeradeel"]
[null,"0505","Dordrecht"]
[null,"0498","Drechterland"]
[null,"1719","Drimmelen"]
[null,"0303","Dronten"]
[null,"0225","Druten"]
[null,"0226","Duiven"]
[null,"1711","Echt-Susteren"]
[null,"0385","Edam-Volendam"]
[null,"0228","Ede"]
[null,"0317","Eemnes"]
[null,"1651","Eemsmond"]
[null,"0770","Eersel"]
[null,"1903","Eijsden-Margraten"]
[null,"0772","Eindhoven"]
[null,"0230","Elburg"]
[null,"0114","Emmen"]
[null,"0388","Enkhuizen"]
[null,"0153","Enschede"]
[null,"0232","Epe"]
[null,"0233","Ermelo"]
[null,"0777","Etten-Leur"]
[null,"1722","Ferwerderadiel"]
[null,"1940","De Fryske Marren"]
[null,"0779","Geertruidenberg"]
[null,"0236","Geldermalsen"]
[null,"1771","Geldrop-Mierlo"]
[null,"1652","Gemert-Bakel"]
[null,"0907","Gennep"]
[null,"0689","Giessenlanden"]
[null,"0784","Gilze en Rijen"]
[null,"1924","Goeree-Overflakkee"]
[null,"0664","Goes"]
[null,"0785","Goirle"]
[null,"1942","Gooise Meren"]
[null,"0512","Gorinchem"]
[null,"0513","Gouda"]
[null,"0786","Grave"]
[null,"0518","'s-Gravenhage"]
[null,"0014","Groningen"]
[null,"0015","Grootegast"]
[null,"1729","Gulpen-Wittem"]
[null,"0158","Haaksbergen"]
[null,"0788","Haaren"]
[null,"0392","Haarlem"]
[null,"0393","Haarlemmerliede en Spaarnwoude"]
[null,"0394","Haarlemmermeer"]
[null,"1655","Halderberge"]
[null,"0160","Hardenberg"]
[null,"0243","Harderwijk"]
[null,"0523","Hardinxveld-Giessendam"]
[null,"0017","Haren"]
[null,"0072","Harlingen"]
[null,"0244","Hattem"]
[null,"0396","Heemskerk"]
[null,"0397","Heemstede"]
[null,"0246","Heerde"]
[null,"0074","Heerenveen"]
[null,"0398","Heerhugowaard"]
[null,"0917","Heerlen"]
[null,"1658","Heeze-Leende"]
[null,"0399","Heiloo"]
[null,"0400","Den Helder"]
[null,"0163","Hellendoorn"]
[null,"0530","Hellevoetsluis"]
[null,"0794","Helmond"]
[null,"0531","Hendrik-Ido-Ambacht"]
[null,"0164","Hengelo"]
[null,"0796","'s-Hertogenbosch"]
[null,"0252","Heumen"]
[null,"0797","Heusden"]
[null,"0534","Hillegom"]
[null,"0798","Hilvarenbeek"]
[null,"0402","Hilversum"]
[null,"1735","Hof van Twente"]
[null,"1911","Hollands Kroon"]
[null,"0118","Hoogeveen"]
[null,"0405","Hoorn"]
[null,"1507","Horst aan de Maas"]
[null,"0321","Houten"]
[null,"0406","Huizen"]
[null,"0677","Hulst"]
[null,"0353","IJsselstein"]
[null,"1884","Kaag en Braassem"]
[null,"0166","Kampen"]
[null,"0678","Kapelle"]
[null,"0537","Katwijk"]
[null,"0928","Kerkrade"]
[null,"1598","Koggenland"]
[null,"0079","Kollumerland en Nieuwkruisland"]
[null,"0588","Korendijk"]
[null,"0542","Krimpen aan den IJssel"]
[null,"1931","Krimpenerwaard"]
[null,"1659","Laarbeek"]
[null,"1685","Landerd"]
[null,"0882","Landgraaf"]
[null,"0415","Landsmeer"]
[null,"0416","Langedijk"]
[null,"1621","Lansingerland"]
[null,"0417","Laren"]
[null,"0022","Leek"]
[null,"0545","Leerdam"]
[null,"0080","Leeuwarden"]
[null,"0546","Leiden"]
[null,"0547","Leiderdorp"]
[null,"1916","Leidschendam-Voorburg"]
[null,"0995","Lelystad"]
[null,"1640","Leudal"]
[null,"0327","Leusden"]
[null,"0733","Lingewaal"]
[null,"1705","Lingewaard"]
[null,"0553","Lisse"]
[null,"0262","Lochem"]
[null,"0809","Loon op Zand"]
[null,"0331","Lopik"]
[null,"0024","Loppersum"]
[null,"0168","Losser"]
[null,"0263","Maasdriel"]
[null,"1641","Maasgouw"]
[null,"0556","Maassluis"]
[null,"0935","Maastricht"]
[null,"1663","De Marne"]
[null,"0025","Marum"]
[null,"0420","Medemblik"]
[null,"0938","Meerssen"]
[null,"1948","Meierijstad"]
[null,"0119","Meppel"]
[null,"0687","Middelburg"]
[null,"1842","Midden-Delfland"]
[null,"1731","Midden-Drenthe"]
[null,"1952","Midden-Groningen"]
[null,"0815","Mill en Sint Hubert"]
[null,"1709","Moerdijk"]
[null,"1927","Molenwaard"]
[null,"1955","Montferland"]
[null,"0335","Montfoort"]
[null,"0944","Mook en Middelaar"]
[null,"1740","Neder-Betuwe"]
[null,"0946","Nederweert"]
[null,"0304","Neerijnen"]
[null,"0356","Nieuwegein"]
[null,"0569","Nieuwkoop"]
[null,"0267","Nijkerk"]
[null,"0268","Nijmegen"]
[null,"1930","Nissewaard"]
[null,"1695","Noord-Beveland"]
[null,"1699","Noordenveld"]
[null,"0171","Noordoostpolder"]
[null,"0575","Noordwijk"]
[null,"0576","Noordwijkerhout"]
[null,"0820","Nuenen, Gerwen en Nederwetten"]
[null,"0302","Nunspeet"]
[null,"0951","Nuth"]
[null,"0579","Oegstgeest"]
[null,"0823","Oirschot"]
[null,"0824","Oisterwijk"]
[null,"1895","Oldambt"]
[null,"0269","Oldebroek"]
[null,"0173","Oldenzaal"]
[null,"1773","Olst-Wijhe"]
[null,"0175","Ommen"]
[null,"0881","Onderbanken"]
[null,"1586","Oost Gelre"]
[null,"0826","Oosterhout"]
[null,"0085","Ooststellingwerf"]
[null,"0431","Oostzaan"]
[null,"0432","Opmeer"]
[null,"0086","Opsterland"]
[null,"0828","Oss"]
[null,"0584","Oud-Beijerland"]
[null,"1509","Oude IJsselstreek"]
[null,"0437","Ouder-Amstel"]
[null,"0589","Oudewater"]
[null,"1734","Overbetuwe"]
[null,"0590","Papendrecht"]
[null,"1894","Peel en Maas"]
[null,"0765","Pekela"]
[null,"1926","Pijnacker-Nootdorp"]
[null,"0439","Purmerend"]
[null,"0273","Putten"]
[null,"0177","Raalte"]
[null,"0703","Reimerswaal"]
[null,"0274","Renkum"]
[null,"0339","Renswoude"]
[null,"1667","Reusel-De Mierden"]
[null,"0275","Rheden"]
[null,"0340","Rhenen"]
[null,"0597","Ridderkerk"]
[null,"1742","Rijssen-Holten"]
[null,"0603","Rijswijk"]
[null,"1669","Roerdalen"]
[null,"0957","Roermond"]
[null,"0736","De Ronde Venen"]
[null,"1674","Roosendaal"]
[null,"0599","Rotterdam"]
[null,"0277","Rozendaal"]
[null,"0840","Rucphen"]
[null,"0441","Schagen"]
[null,"0279","Scherpenzeel"]
[null,"0606","Schiedam"]
[null,"0088","Schiermonnikoog"]
[null,"0962","Schinnen"]
[null,"1676","Schouwen-Duiveland"]
[null,"0965","Simpelveld"]
[null,"1702","Sint Anthonis"]
[null,"0845","Sint-Michielsgestel"]
[null,"1883","Sittard-Geleen"]
[null,"0610","Sliedrecht"]
[null,"1714","Sluis"]
[null,"0090","Smallingerland"]
[null,"0342","Soest"]
[null,"0847","Someren"]
[null,"0848","Son en Breugel"]
[null,"0037","Stadskanaal"]
[null,"0180","Staphorst"]
[null,"0532","Stede Broec"]
[null,"0851","Steenbergen"]
[null,"1708","Steenwijkerland"]
[null,"0971","Stein"]
[null,"1904","Stichtse Vecht"]
[null,"0617","Strijen"]
[null,"1900","Súdwest-Fryslân"]
[null,"0715","Terneuzen"]
[null,"0093","Terschelling"]
[null,"0448","Texel"]
[null,"1525","Teylingen"]
[null,"0716","Tholen"]
[null,"0281","Tiel"]
[null,"0855","Tilburg"]
[null,"0183","Tubbergen"]
[null,"1700","Twenterand"]
[null,"1730","Tynaarlo"]
[null,"0737","Tytsjerksteradiel"]
[null,"0856","Uden"]
[null,"0450","Uitgeest"]
[null,"0451","Uithoorn"]
[null,"0184","Urk"]
[null,"0344","Utrecht"]
[null,"1581","Utrechtse Heuvelrug"]
[null,"0981","Vaals"]
[null,"0994","Valkenburg aan de Geul"]
[null,"0858","Valkenswaard"]
[null,"0047","Veendam"]
[null,"0345","Veenendaal"]
[null,"0717","Veere"]
[null,"0861","Veldhoven"]
[null,"0453","Velsen"]
[null,"0983","Venlo"]
[null,"0984","Venray"]
[null,"0620","Vianen"]
[null,"0622","Vlaardingen"]
[null,"0096","Vlieland"]
[null,"0718","Vlissingen"]
[null,"0986","Voerendaal"]
[null,"0626","Voorschoten"]
[null,"0285","Voorst"]
[null,"0865","Vught"]
[null,"1949","Waadhoeke"]
[null,"0866","Waalre"]
[null,"0867","Waalwijk"]
[null,"0627","Waddinxveen"]
[null,"0289","Wageningen"]
[null,"0629","Wassenaar"]
[null,"0852","Waterland"]
[null,"0988","Weert"]
[null,"0457","Weesp"]
[null,"0870","Werkendam"]
[null,"0668","West Maas en Waal"]
[null,"1701","Westerveld"]
[null,"0293","Westervoort"]
[null,"1950","Westerwolde"]
[null,"1783","Westland"]
[null,"0098","Weststellingwerf"]
[null,"0614","Westvoorne"]
[null,"0189","Wierden"]
[null,"0296","Wijchen"]
[null,"1696","Wijdemeren"]
[null,"0352","Wijk bij Duurstede"]
[null,"0053","Winsum"]
[null,"0294","Winterswijk"]
[null,"0873","Woensdrecht"]
[null,"0632","Woerden"]
[null,"1690","De Wolden"]
[null,"0880","Wormerland"]
[null,"0351","Woudenberg"]
[null,"0874","Woudrichem"]
[null,"0479","Zaanstad"]
[null,"0297","Zaltbommel"]
[null,"0473","Zandvoort"]
[null,"0707","Zederik"]
[null,"0050","Zeewolde"]
[null,"0355","Zeist"]
[null,"0299","Zevenaar"]
[null,"0637","Zoetermeer"]
[null,"0638","Zoeterwoude"]
[null,"0056","Zuidhorn"]
[null,"1892","Zuidplas"]
[null,"0879","Zundert"]
[null,"0301","Zutphen"]
[null,"1896","Zwartewaterland"]
[null,"0642","Zwijndrecht"]
[null,"0193","Zwolle"]

{"sheet":"Voorbeeld","index":6,"n_rows":24,"n_cols":17,"rows_kept":24,"cut":false,"hidden":true,"merged":[]}
[]
[null,null,null,null,null,null,"Contact-","Naam",null,"Naam organisatie",null,null,null,"Outcome-gegevens (optioneel)"]
[null,"Verslagperiode:","2015-01-01","t/m","2015-06-30",null,"gegevens","Email",null,"KVK-nummer"]
[null,null,null,null,null,null,null,"Telefoon",null,"AGB-instellingscode"]
[]
[null,"BSN","Geslacht","Geboortedatum","Postcode","Gemeente","Datum aanvang jeugdhulp","Gestart met crisis","Verwijzer","Hulpvorm","Perspectief","Datum einde jeugdhulp","Reden beëindiging jeugdhulp","Cliënt: Cliënt-tevredenheid","Cliënt: Zonder hulp verder","Ouder: Cliënt-tevredenheid","Ouder: Zonder hulp verder"]
[null,123456789,"M","2006-12-19","1234AB",null,"2016-07-01",2,"01","01","03","2017-04-12","01",7,3,5,2]
[null,112233445,"M","00-00-2001","2302BC",null,"2016-08-15",2,"01","03",null,null,""]
[null,123456789,"M","2006-12-19","1000AA",null,"2016-09-01",2,"01","02",null,null,""]
[null,999999999,"V","2001-09-03","3000BB",null,"2014-06-01",1,"07","02","04","2016-07-31","01",6,3,8,4]
[null,987654321,"M","2013-08-31",null,"0599","2016-07-01",2,"06",11,"04","2016-09-20","03",9,4,8,4]
[null,554433221,"V","00-12-1995","3456ZW",null,"2016-08-01",1,"01",11]
[]
[null,null,"Bij onbekende BSN, vul in: 999999999",null,null,null,"Indien postcode onbekend: CBS-gemeentecode ",null,null,null,null,"Coderingen zijn opgenomen in tabblad 'Codelijsten'"]
[null,null,null,null,null,null,"Deze staan per gemeente in het tabblad ' Codelijsten'"]
[null,null,null,null,null,null,"Invullen volgens woonplaatsbeginsel*",null,null,null,null,"Categorie onbekend mag alleen als datum aanvang vóór 2015 ligt"]
[null,null,null,null,null,null,"=> in dit voorbeeld 0599 = Rotterdam"]
[]
[null,null,null,null,null,null,"Geboortedatum mag 00-MM-JJJJ of 00-00-JJJJ zijn als de"]
[null,null,null,null,null,null,"geboortedag resp. geboortedag en geboortemaand"]
[null,null,null,null,null,null,"onbekend zijn."]
[]
[null,null,null,null,null,null,null,null,null,null,null,null,{"$f":"LEFT(M12,2)","v":""}]
[null,"*  Zie woonplaatsbeginsel op www.vng.nl"]

{"sheet":"Controlesheet","index":7,"n_rows":301,"n_cols":39,"rows_kept":301,"cut":false,"hidden":true,"merged":[[4,37,5,37],[4,38,5,38],[6,4,8,6],[13,4,13,5],[14,4,14,6],[4,29,5,29],[4,31,5,31],[4,32,5,32]]}
[]
[]
[]
[]
[null,null,"Kloppen de contactpersoon gegevens van uw organisatie?",null,null,null,null,null,null,null,null,null,null,null,null,null,null,null,null,null,null,null,null,null,null,null,"Regel","BSN","Geslacht","Geboorte-datum","Postcode","Gemeente","Datum aanvang jeugdhulp","Gestart met","Verwijzer","Hulpvorm","Perspectief","Datum einde jeugdhulp","Reden beëindiging jeugdhulp"]
[null,null,"Naam",null,null,null,null,null,null,null,null,null,null,"Alfabet","datumAanvang","DatumEinde","Postcode","11 proef",null,null,"Gevulde rijen","Fout",null,null,null,null,null,null,null,null,null,null,null,"crisis"]
[null,null,"Emailadres",null,null,null,null,null,null,null,null,null,null,"abcdefghijklmnopqrstuvwxyz",null,null,null,null,null,null,null,null,null,null,null,null,7]
[null,null,"Telefoon",null,null,null,null,null,null,null,null,null,null,null,null,null,null,null,null,null,null,null,null,null,null,null,8]
[null,null,"Naam organisatie",null,null,null,null,null,null,null,null,null,null,null,null,null,null,null,null,null,null,null,null,null,null,null,9]
[null,null,"KVK-nummer",null,null,null,null,null,null,null,null,null,null,null,null,null,null,null,null,null,null,null,null,null,null,null,10]
[null,null,"AGB-instellingscode",null,null,null,null,null,null,null,null,null,null,null,null,null,null,null,null,null,null,null,null,null,null,null,11]
[null,null,null,null,null,null,null,null,null,null,null,null,null,null,null,null,null,null,null,null,null,null,null,null,null,null,12]
[null,null,"Klopt de verslagperiode?",null,null,null,null,null,null,null,null,null,null,null,null,null,null,null,null,null,null,null,null,null,null,null,13]
[null,null,"Begindatum",null,{"$f":"IF(G30<>0,\"Zie hiernaast de cellen \",\"\")","v":""},null,null,null,null,null,null,null,null,null,null,null,null,null,null,null,null,null,null,null,null,null,14]
[null,null,"Einddatum",null,{"$f":"IF(G30<>0,\"    die foutief zijn ingevuld   ==>  \",\"\")","v":""},null,null,null,null,null,null,null,null,null,null,null,null,null,null,null,null,null,null,null,null,null,15]
[null,null,null,null,null,null,null,null,null,null,null,null,null,null,null,null,null,null,null,null,null,null,null,null,null,null,16]
[null,null,"Controles ten aanzien van de jeugdhulpgegevens",null,null,null,null,null,null,null,null,null,null,null,null,null,null,null,null,null,null,null,null,null,null,null,17]
[null,null,"BSN: voldoet niet aan 11 proef",null,null,null,null,null,null,null,null,null,null,null,null,null,null,null,null,null,null,null,null,null,null,null,18]
[null,null,"Geslacht: niet uit codelijst",null,null,null,null,null,null,null,null,null,null,null,null,null,null,null,null,null,null,null,null,null,null,null,19]
[null,null,"Geboortedatum: leeg of onjuiste datum",null,null,null,null,null,null,null,null,null,null,null,null,null,null,null,null,null,null,null,null,null,null,null,20]
[null,null,"Postcode: onjuiste postcode en geen/incorrecte gemeentecode",null,null,null,null,null,null,null,null,null,null,null,null,null,null,null,null,null,null,null,null,null,null,null,21]
[null,null,"Gemeentecode: geen code uit codelijst",null,null,null,null,null,null,null,null,null,null,null,null,null,null,null,null,null,null,null,null,null,null,null,22]
[null,null,"Datum aanvang jeugdhulp: leeg, onjuist of na verslagperiode",null,null,null,null,null,null,null,null,null,null,null,null,null,null,null,null,null,null,null,null,null,null,null,23]
[null,null,"Verwijzer: geen code uit codelijst",null,null,null,null,null,null,null,null,null,null,null,null,null,null,null,null,null,null,null,null,null,null,null,24]
[null,null,"Hulpvorm: geen code uit codelijst",null,null,null,null,null,null,null,null,null,null,null,null,null,null,null,null,null,null,null,null,null,null,null,25]
[null,null,"Perspectief: indien einddatum, geen code uit codelijst",null,null,null,null,null,null,null,null,null,null,null,null,null,null,null,null,null,null,null,null,null,null,null,26]
[null,null,"Datum einde jeugdhulp: onjuist, buiten verslagperiode of voor begindatum hulp",null,null,null,null,null,null,null,null,null,null,null,null,null,null,null,null,null,null,null,null,null,null,null,27]
[null,null,"Code reden beëindiging: indien einddatum, geen code uit codelijst",null,null,null,null,null,null,null,null,null,null,null,null,null,null,null,null,null,null,null,null,null,null,null,28]
[null,null,null,null,null,null,null,null,null,null,null,null,null,null,null,null,null,null,null,null,null,null,null,null,null,null,29]
[null,null,"Totaal aantal gevonden fouten:",null,null,null,null,null,null,null,null,null,null,null,null,null,null,null,null,null,null,null,null,null,null,null,30]
[null,null,null,null,null,null,null,null,null,null,null,null,null,null,null,null,null,null,null,null,null,null,null,null,null,null,31]
[null,null,"Totaal aantal ingevulde rijen:",null,null,null,null,null,null,null,null,null,null,null,null,null,null,null,null,null,null,null,null,null,null,null,32]
[null,null,"    waarvan met fouten:",null,null,null,null,null,null,null,null,null,null,null,null,null,null,null,null,null,null,null,null,null,null,null,33]
[null,null,null,null,null,null,null,null,null,null,null,null,null,null,null,null,null,null,null,null,null,null,null,null,null,null,34]
[null,null,null,null,null,null,null,null,null,null,null,null,null,null,null,null,null,null,null,null,null,null,null,null,null,null,35]
[null,null,null,null,null,null,null,null,null,null,null,null,null,null,null,null,null,null,null,null,null,null,null,null,null,null,36]
[null,null,null,null,null,null,null,null,null,null,null,null,null,null,null,null,null,null,null,null,null,null,null,null,null,null,37]
[null,null,null,null,null,null,null,null,null,null,null,null,null,null,null,null,null,null,null,null,null,null,null,null,null,null,38]
[null,null,null,null,null,null,null,null,null,null,null,null,null,null,null,null,null,null,null,null,null,null,null,null,null,null,39]
[null,null,null,null,null,null,null,null,null,null,null,null,null,null,null,null,null,null,null,null,null,null,null,null,null,null,40]
[null,null,null,null,null,null,null,null,null,null,null,null,null,null,null,null,null,null,null,null,null,null,null,null,null,null,41]
[null,null,null,null,null,null,null,null,null,null,null,null,null,null,null,null,null,null,null,null,null,null,null,null,null,null,42]
[null,null,null,null,null,null,null,null,null,null,null,null,null,null,null,null,null,null,null,null,null,null,null,null,null,null,43]
[null,null,null,null,null,null,null,null,null,null,null,null,null,null,null,null,null,null,null,null,null,null,null,null,null,null,44]
[null,null,null,null,null,null,null,null,null,null,null,null,null,null,null,null,null,null,null,null,null,null,null,null,null,null,45]
[null,null,null,null,null,null,null,null,null,null,null,null,null,null,null,null,null,null,null,null,null,null,null,null,null,null,46]
[null,null,null,null,null,null,null,null,null,null,null,null,null,null,null,null,null,null,null,null,null,null,null,null,null,null,47]
[null,null,null,null,null,null,null,null,null,null,null,null,null,null,null,null,null,null,null,null,null,null,null,null,null,null,48]
[null,null,null,null,null,null,null,null,null,null,null,null,null,null,null,null,null,null,null,null,null,null,null,null,null,null,49]
[null,null,null,null,null,null,null,null,null,null,null,null,null,null,null,null,null,null,null,null,null,null,null,null,null,null,50]
[null,null,null,null,null,null,null,null,null,null,null,null,null,null,null,null,null,null,null,null,null,null,null,null,null,null,51]
[null,null,null,null,null,null,null,null,null,null,null,null,null,null,null,null,null,null,null,null,null,null,null,null,null,null,52]
[null,null,null,null,null,null,null,null,null,null,null,null,null,null,null,null,null,null,null,null,null,null,null,null,null,null,53]
[null,null,null,null,null,null,null,null,null,null,null,null,null,null,null,null,null,null,null,null,null,null,null,null,null,null,54]
[null,null,null,null,null,null,null,null,null,null,null,null,null,null,null,null,null,null,null,null,null,null,null,null,null,null,55]
[null,null,null,null,null,null,null,null,null,null,null,null,null,null,null,null,null,null,null,null,null,null,null,null,null,null,56]
[null,null,null,null,null,null,null,null,null,null,null,null,null,null,null,null,null,null,null,null,null,null,null,null,null,null,57]
[null,null,null,null,null,null,null,null,null,null,null,null,null,null,null,null,null,null,null,null,null,null,null,null,null,null,58]
[null,null,null,null,null,null,null,null,null,null,null,null,null,null,null,null,null,null,null,null,null,null,null,null,null,null,59]
[null,null,null,null,null,null,null,null,null,null,null,null,null,null,null,null,null,null,null,null,null,null,null,null,null,null,60]
[null,null,null,null,null,null,null,null,null,null,null,null,null,null,null,null,null,null,null,null,null,null,null,null,null,null,61]
[null,null,null,null,null,null,null,null,null,null,null,null,null,null,null,null,null,null,null,null,null,null,null,null,null,null,62]
[null,null,null,null,null,null,null,null,null,null,null,null,null,null,null,null,null,null,null,null,null,null,null,null,null,null,63]
[null,null,null,null,null,null,null,null,null,null,null,null,null,null,null,null,null,null,null,null,null,null,null,null,null,null,64]
[null,null,null,null,null,null,null,null,null,null,null,null,null,null,null,null,null,null,null,null,null,null,null,null,null,null,65]
[null,null,null,null,null,null,null,null,null,null,null,null,null,null,null,null,null,null,null,null,null,null,null,null,null,null,66]
[null,null,null,null,null,null,null,null,null,null,null,null,null,null,null,null,null,null,null,null,null,null,null,null,null,null,67]
[null,null,null,null,null,null,null,null,null,null,null,null,null,null,null,null,null,null,null,null,null,null,null,null,null,null,68]
[null,null,null,null,null,null,null,null,null,null,null,null,null,null,null,null,null,null,null,null,null,null,null,null,null,null,69]
[null,null,null,null,null,null,null,null,null,null,null,null,null,null,null,null,null,null,null,null,null,null,null,null,null,null,70]
[null,null,null,null,null,null,null,null,null,null,null,null,null,null,null,null,null,null,null,null,null,null,null,null,null,null,71]
[null,null,null,null,null,null,null,null,null,null,null,null,null,null,null,null,null,null,null,null,null,null,null,null,null,null,72]
[null,null,null,null,null,null,null,null,null,null,null,null,null,null,null,null,null,null,null,null,null,null,null,null,null,null,73]
[null,null,null,null,null,null,null,null,null,null,null,null,null,null,null,null,null,null,null,null,null,null,null,null,null,null,74]
[null,null,null,null,null,null,null,null,null,null,null,null,null,null,null,null,null,null,null,null,null,null,null,null,null,null,75]
[null,null,null,null,null,null,null,null,null,null,null,null,null,null,null,null,null,null,null,null,null,null,null,null,null,null,76]
[null,null,null,null,null,null,null,null,null,null,null,null,null,null,null,null,null,null,null,null,null,null,null,null,null,null,77]
[null,null,null,null,null,null,null,null,null,null,null,null,null,null,null,null,null,null,null,null,null,null,null,null,null,null,78]
[null,null,null,null,null,null,null,null,null,null,null,null,null,null,null,null,null,null,null,null,null,null,null,null,null,null,79]
[null,null,null,null,null,null,null,null,null,null,null,null,null,null,null,null,null,null,null,null,null,null,null,null,null,null,80]
[null,null,null,null,null,null,null,null,null,null,null,null,null,null,null,null,null,null,null,null,null,null,null,null,null,null,81]
[null,null,null,null,null,null,null,null,null,null,null,null,null,null,null,null,null,null,null,null,null,null,null,null,null,null,82]
[null,null,null,null,null,null,null,null,null,null,null,null,null,null,null,null,null,null,null,null,null,null,null,null,null,null,83]
[null,null,null,null,null,null,null,null,null,null,null,null,null,null,null,null,null,null,null,null,null,null,null,null,null,null,84]
[null,null,null,null,null,null,null,null,null,null,null,null,null,null,null,null,null,null,null,null,null,null,null,null,null,null,85]
[null,null,null,null,null,null,null,null,null,null,null,null,null,null,null,null,null,null,null,null,null,null,null,null,null,null,86]
[null,null,null,null,null,null,null,null,null,null,null,null,null,null,null,null,null,null,null,null,null,null,null,null,null,null,87]
[null,null,null,null,null,null,null,null,null,null,null,null,null,null,null,null,null,null,null,null,null,null,null,null,null,null,88]
[null,null,null,null,null,null,null,null,null,null,null,null,null,null,null,null,null,null,null,null,null,null,null,null,null,null,89]
[null,null,null,null,null,null,null,null,null,null,null,null,null,null,null,null,null,null,null,null,null,null,null,null,null,null,90]
[null,null,null,null,null,null,null,null,null,null,null,null,null,null,null,null,null,null,null,null,null,null,null,null,null,null,91]
[null,null,null,null,null,null,null,null,null,null,null,null,null,null,null,null,null,null,null,null,null,null,null,null,null,null,92]
[null,null,null,null,null,null,null,null,null,null,null,null,null,null,null,null,null,null,null,null,null,null,null,null,null,null,93]
[null,null,null,null,null,null,null,null,null,null,null,null,null,null,null,null,null,null,null,null,null,null,null,null,null,null,94]
[null,null,null,null,null,null,null,null,null,null,null,null,null,null,null,null,null,null,null,null,null,null,null,null,null,null,95]
[null,null,null,null,null,null,null,null,null,null,null,null,null,null,null,null,null,null,null,null,null,null,null,null,null,null,96]
[null,null,null,null,null,null,null,null,null,null,null,null,null,null,null,null,null,null,null,null,null,null,null,null,null,null,97]
[null,null,null,null,null,null,null,null,null,null,null,null,null,null,null,null,null,null,null,null,null,null,null,null,null,null,98]
[null,null,null,null,null,null,null,null,null,null,null,null,null,null,null,null,null,null,null,null,null,null,null,null,null,null,99]
[null,null,null,null,null,null,null,null,null,null,null,null,null,null,null,null,null,null,null,null,null,null,null,null,null,null,100]
[null,null,null,null,null,null,null,null,null,null,null,null,null,null,null,null,null,null,null,null,null,null,null,null,null,null,101]
[null,null,null,null,null,null,null,null,null,null,null,null,null,null,null,null,null,null,null,null,null,null,null,null,null,null,102]
[null,null,null,null,null,null,null,null,null,null,null,null,null,null,null,null,null,null,null,null,null,null,null,null,null,null,103]
[null,null,null,null,null,null,null,null,null,null,null,null,null,null,null,null,null,null,null,null,null,null,null,null,null,null,104]
[null,null,null,null,null,null,null,null,null,null,null,null,null,null,null,null,null,null,null,null,null,null,null,null,null,null,105]
[null,null,null,null,null,null,null,null,null,null,null,null,null,null,null,null,null,null,null,null,null,null,null,null,null,null,106]
[null,null,null,null,null,null,null,null,null,null,null,null,null,null,null,null,null,null,null,null,null,null,null,null,null,null,107]
[null,null,null,null,null,null,null,null,null,null,null,null,null,null,null,null,null,null,null,null,null,null,null,null,null,null,108]
[null,null,null,null,null,null,null,null,null,null,null,null,null,null,null,null,null,null,null,null,null,null,null,null,null,null,109]
[null,null,null,null,null,null,null,null,null,null,null,null,null,null,null,null,null,null,null,null,null,null,null,null,null,null,110]
[null,null,null,null,null,null,null,null,null,null,null,null,null,null,null,null,null,null,null,null,null,null,null,null,null,null,111]
[null,null,null,null,null,null,null,null,null,null,null,null,null,null,null,null,null,null,null,null,null,null,null,null,null,null,112]
[null,null,null,null,null,null,null,null,null,null,null,null,null,null,null,null,null,null,null,null,null,null,null,null,null,null,113]
[null,null,null,null,null,null,null,null,null,null,null,null,null,null,null,null,null,null,null,null,null,null,null,null,null,null,114]
[null,null,null,null,null,null,null,null,null,null,null,null,null,null,null,null,null,null,null,null,null,null,null,null,null,null,115]
[null,null,null,null,null,null,null,null,null,null,null,null,null,null,null,null,null,null,null,null,null,null,null,null,null,null,116]
[null,null,null,null,null,null,null,null,null,null,null,null,null,null,null,null,null,null,null,null,null,null,null,null,null,null,117]
[null,null,null,null,null,null,null,null,null,null,null,null,null,null,null,null,null,null,null,null,null,null,null,null,null,null,118]
[null,null,null,null,null,null,null,null,null,null,null,null,null,null,null,null,null,null,null,null,null,null,null,null,null,null,119]
[null,null,null,null,null,null,null,null,null,null,null,null,null,null,null,null,null,null,null,null,null,null,null,null,null,null,120]
[null,null,null,null,null,null,null,null,null,null,null,null,null,null,null,null,null,null,null,null,null,null,null,null,null,null,121]
[null,null,null,null,null,null,null,null,null,null,null,null,null,null,null,null,null,null,null,null,null,null,null,null,null,null,122]
[null,null,null,null,null,null,null,null,null,null,null,null,null,null,null,null,null,null,null,null,null,null,null,null,null,null,123]
[null,null,null,null,null,null,null,null,null,null,null,null,null,null,null,null,null,null,null,null,null,null,null,null,null,null,124]
[null,null,null,null,null,null,null,null,null,null,null,null,null,null,null,null,null,null,null,null,null,null,null,null,null,null,125]
[null,null,null,null,null,null,null,null,null,null,null,null,null,null,null,null,null,null,null,null,null,null,null,null,null,null,126]
[null,null,null,null,null,null,null,null,null,null,null,null,null,null,null,null,null,null,null,null,null,null,null,null,null,null,127]
[null,null,null,null,null,null,null,null,null,null,null,null,null,null,null,null,null,null,null,null,null,null,null,null,null,null,128]
[null,null,null,null,null,null,null,null,null,null,null,null,null,null,null,null,null,null,null,null,null,null,null,null,null,null,129]
[null,null,null,null,null,null,null,null,null,null,null,null,null,null,null,null,null,null,null,null,null,null,null,null,null,null,130]
[null,null,null,null,null,null,null,null,null,null,null,null,null,null,null,null,null,null,null,null,null,null,null,null,null,null,131]
[null,null,null,null,null,null,null,null,null,null,null,null,null,null,null,null,null,null,null,null,null,null,null,null,null,null,132]
[null,null,null,null,null,null,null,null,null,null,null,null,null,null,null,null,null,null,null,null,null,null,null,null,null,null,133]
[null,null,null,null,null,null,null,null,null,null,null,null,null,null,null,null,null,null,null,null,null,null,null,null,null,null,134]
[null,null,null,null,null,null,null,null,null,null,null,null,null,null,null,null,null,null,null,null,null,null,null,null,null,null,135]
[null,null,null,null,null,null,null,null,null,null,null,null,null,null,null,null,null,null,null,null,null,null,null,null,null,null,136]
[null,null,null,null,null,null,null,null,null,null,null,null,null,null,null,null,null,null,null,null,null,null,null,null,null,null,137]
[null,null,null,null,null,null,null,null,null,null,null,null,null,null,null,null,null,null,null,null,null,null,null,null,null,null,138]
[null,null,null,null,null,null,null,null,null,null,null,null,null,null,null,null,null,null,null,null,null,null,null,null,null,null,139]
[null,null,null,null,null,null,null,null,null,null,null,null,null,null,null,null,null,null,null,null,null,null,null,null,null,null,140]
[null,null,null,null,null,null,null,null,null,null,null,null,null,null,null,null,null,null,null,null,null,null,null,null,null,null,141]
[null,null,null,null,null,null,null,null,null,null,null,null,null,null,null,null,null,null,null,null,null,null,null,null,null,null,142]
[null,null,null,null,null,null,null,null,null,null,null,null,null,null,null,null,null,null,null,null,null,null,null,null,null,null,143]
[null,null,null,null,null,null,null,null,null,null,null,null,null,null,null,null,null,null,null,null,null,null,null,null,null,null,144]
[null,null,null,null,null,null,null,null,null,null,null,null,null,null,null,null,null,null,null,null,null,null,null,null,null,null,145]
[null,null,null,null,null,null,null,null,null,null,null,null,null,null,null,null,null,null,null,null,null,null,null,null,null,null,146]
[null,null,null,null,null,null,null,null,null,null,null,null,null,null,null,null,null,null,null,null,null,null,null,null,null,null,147]
[null,null,null,null,null,null,null,null,null,null,null,null,null,null,null,null,null,null,null,null,null,null,null,null,null,null,148]
[null,null,null,null,null,null,null,null,null,null,null,null,null,null,null,null,null,null,null,null,null,null,null,null,null,null,149]
[null,null,null,null,null,null,null,null,null,null,null,null,null,null,null,null,null,null,null,null,null,null,null,null,null,null,150]
[null,null,null,null,null,null,null,null,null,null,null,null,null,null,null,null,null,null,null,null,null,null,null,null,null,null,151]
[null,null,null,null,null,null,null,null,null,null,null,null,null,null,null,null,null,null,null,null,null,null,null,null,null,null,152]
[null,null,null,null,null,null,null,null,null,null,null,null,null,null,null,null,null,null,null,null,null,null,null,null,null,null,153]
[null,null,null,null,null,null,null,null,null,null,null,null,null,null,null,null,null,null,null,null,null,null,null,null,null,null,154]
[null,null,null,null,null,null,null,null,null,null,null,null,null,null,null,null,null,null,null,null,null,null,null,null,null,null,155]
[null,null,null,null,null,null,null,null,null,null,null,null,null,null,null,null,null,null,null,null,null,null,null,null,null,null,156]
[null,null,null,null,null,null,null,null,null,null,null,null,null,null,null,null,null,null,null,null,null,null,null,null,null,null,157]
[null,null,null,null,null,null,null,null,null,null,null,null,null,null,null,null,null,null,null,null,null,null,null,null,null,null,158]
[null,null,null,null,null,null,null,null,null,null,null,null,null,null,null,null,null,null,null,null,null,null,null,null,null,null,159]
[null,null,null,null,null,null,null,null,null,null,null,null,null,null,null,null,null,null,null,null,null,null,null,null,null,null,160]
[null,null,null,null,null,null,null,null,null,null,null,null,null,null,null,null,null,null,null,null,null,null,null,null,null,null,161]
[null,null,null,null,null,null,null,null,null,null,null,null,null,null,null,null,null,null,null,null,null,null,null,null,null,null,162]
[null,null,null,null,null,null,null,null,null,null,null,null,null,null,null,null,null,null,null,null,null,null,null,null,null,null,163]
[null,null,null,null,null,null,null,null,null,null,null,null,null,null,null,null,null,null,null,null,null,null,null,null,null,null,164]
[null,null,null,null,null,null,null,null,null,null,null,null,null,null,null,null,null,null,null,null,null,null,null,null,null,null,165]
[null,null,null,null,null,null,null,null,null,null,null,null,null,null,null,null,null,null,null,null,null,null,null,null,null,null,166]
[null,null,null,null,null,null,null,null,null,null,null,null,null,null,null,null,null,null,null,null,null,null,null,null,null,null,167]
[null,null,null,null,null,null,null,null,null,null,null,null,null,null,null,null,null,null,null,null,null,null,null,null,null,null,168]
[null,null,null,null,null,null,null,null,null,null,null,null,null,null,null,null,null,null,null,null,null,null,null,null,null,null,169]
[null,null,null,null,null,null,null,null,null,null,null,null,null,null,null,null,null,null,null,null,null,null,null,null,null,null,170]
[null,null,null,null,null,null,null,null,null,null,null,null,null,null,null,null,null,null,null,null,null,null,null,null,null,null,171]
[null,null,null,null,null,null,null,null,null,null,null,null,null,null,null,null,null,null,null,null,null,null,null,null,null,null,172]
[null,null,null,null,null,null,null,null,null,null,null,null,null,null,null,null,null,null,null,null,null,null,null,null,null,null,173]
[null,null,null,null,null,null,null,null,null,null,null,null,null,null,null,null,null,null,null,null,null,null,null,null,null,null,174]
[null,null,null,null,null,null,null,null,null,null,null,null,null,null,null,null,null,null,null,null,null,null,null,null,null,null,175]
[null,null,null,null,null,null,null,null,null,null,null,null,null,null,null,null,null,null,null,null,null,null,null,null,null,null,176]
[null,null,null,null,null,null,null,null,null,null,null,null,null,null,null,null,null,null,null,null,null,null,null,null,null,null,177]
[null,null,null,null,null,null,null,null,null,null,null,null,null,null,null,null,null,null,null,null,null,null,null,null,null,null,178]
[null,null,null,null,null,null,null,null,null,null,null,null,null,null,null,null,null,null,null,null,null,null,null,null,null,null,179]
[null,null,null,null,null,null,null,null,null,null,null,null,null,null,null,null,null,null,null,null,null,null,null,null,null,null,180]
[null,null,null,null,null,null,null,null,null,null,null,null,null,null,null,null,null,null,null,null,null,null,null,null,null,null,181]
[null,null,null,null,null,null,null,null,null,null,null,null,null,null,null,null,null,null,null,null,null,null,null,null,null,null,182]
[null,null,null,null,null,null,null,null,null,null,null,null,null,null,null,null,null,null,null,null,null,null,null,null,null,null,183]
[null,null,null,null,null,null,null,null,null,null,null,null,null,null,null,null,null,null,null,null,null,null,null,null,null,null,184]
[null,null,null,null,null,null,null,null,null,null,null,null,null,null,null,null,null,null,null,null,null,null,null,null,null,null,185]
[null,null,null,null,null,null,null,null,null,null,null,null,null,null,null,null,null,null,null,null,null,null,null,null,null,null,186]
[null,null,null,null,null,null,null,null,null,null,null,null,null,null,null,null,null,null,null,null,null,null,null,null,null,null,187]
[null,null,null,null,null,null,null,null,null,null,null,null,null,null,null,null,null,null,null,null,null,null,null,null,null,null,188]
[null,null,null,null,null,null,null,null,null,null,null,null,null,null,null,null,null,null,null,null,null,null,null,null,null,null,189]
[null,null,null,null,null,null,null,null,null,null,null,null,null,null,null,null,null,null,null,null,null,null,null,null,null,null,190]
[null,null,null,null,null,null,null,null,null,null,null,null,null,null,null,null,null,null,null,null,null,null,null,null,null,null,191]
[null,null,null,null,null,null,null,null,null,null,null,null,null,null,null,null,null,null,null,null,null,null,null,null,null,null,192]
[null,null,null,null,null,null,null,null,null,null,null,null,null,null,null,null,null,null,null,null,null,null,null,null,null,null,193]
[null,null,null,null,null,null,null,null,null,null,null,null,null,null,null,null,null,null,null,null,null,null,null,null,null,null,194]
[null,null,null,null,null,null,null,null,null,null,null,null,null,null,null,null,null,null,null,null,null,null,null,null,null,null,195]
[null,null,null,null,null,null,null,null,null,null,null,null,null,null,null,null,null,null,null,null,null,null,null,null,null,null,196]
[null,null,null,null,null,null,null,null,null,null,null,null,null,null,null,null,null,null,null,null,null,null,null,null,null,null,197]
[null,null,null,null,null,null,null,null,null,null,null,null,null,null,null,null,null,null,null,null,null,null,null,null,null,null,198]
[null,null,null,null,null,null,null,null,null,null,null,null,null,null,null,null,null,null,null,null,null,null,null,null,null,null,199]
[null,null,null,null,null,null,null,null,null,null,null,null,null,null,null,null,null,null,null,null,null,null,null,null,null,null,200]
[null,null,null,null,null,null,null,null,null,null,null,null,null,null,null,null,null,null,null,null,null,null,null,null,null,null,201]
[null,null,null,null,null,null,null,null,null,null,null,null,null,null,null,null,null,null,null,null,null,null,null,null,null,null,202]
[null,null,null,null,null,null,null,null,null,null,null,null,null,null,null,null,null,null,null,null,null,null,null,null,null,null,203]
[null,null,null,null,null,null,null,null,null,null,null,null,null,null,null,null,null,null,null,null,null,null,null,null,null,null,204]
[null,null,null,null,null,null,null,null,null,null,null,null,null,null,null,null,null,null,null,null,null,null,null,null,null,null,205]
[null,null,null,null,null,null,null,null,null,null,null,null,null,null,null,null,null,null,null,null,null,null,null,null,null,null,206]
[null,null,null,null,null,null,null,null,null,null,null,null,null,null,null,null,null,null,null,null,null,null,null,null,null,null,207]
[null,null,null,null,null,null,null,null,null,null,null,null,null,null,null,null,null,null,null,null,null,null,null,null,null,null,208]
[null,null,null,null,null,null,null,null,null,null,null,null,null,null,null,null,null,null,null,null,null,null,null,null,null,null,209]
[null,null,null,null,null,null,null,null,null,null,null,null,null,null,null,null,null,null,null,null,null,null,null,null,null,null,210]
[null,null,null,null,null,null,null,null,null,null,null,null,null,null,null,null,null,null,null,null,null,null,null,null,null,null,211]
[null,null,null,null,null,null,null,null,null,null,null,null,null,null,null,null,null,null,null,null,null,null,null,null,null,null,212]
[null,null,null,null,null,null,null,null,null,null,null,null,null,null,null,null,null,null,null,null,null,null,null,null,null,null,213]
[null,null,null,null,null,null,null,null,null,null,null,null,null,null,null,null,null,null,null,null,null,null,null,null,null,null,214]
[null,null,null,null,null,null,null,null,null,null,null,null,null,null,null,null,null,null,null,null,null,null,null,null,null,null,215]
[null,null,null,null,null,null,null,null,null,null,null,null,null,null,null,null,null,null,null,null,null,null,null,null,null,null,216]
[null,null,null,null,null,null,null,null,null,null,null,null,null,null,null,null,null,null,null,null,null,null,null,null,null,null,217]
[null,null,null,null,null,null,null,null,null,null,null,null,null,null,null,null,null,null,null,null,null,null,null,null,null,null,218]
[null,null,null,null,null,null,null,null,null,null,null,null,null,null,null,null,null,null,null,null,null,null,null,null,null,null,219]
[null,null,null,null,null,null,null,null,null,null,null,null,null,null,null,null,null,null,null,null,null,null,null,null,null,null,220]
[null,null,null,null,null,null,null,null,null,null,null,null,null,null,null,null,null,null,null,null,null,null,null,null,null,null,221]
[null,null,null,null,null,null,null,null,null,null,null,null,null,null,null,null,null,null,null,null,null,null,null,null,null,null,222]
[null,null,null,null,null,null,null,null,null,null,null,null,null,null,null,null,null,null,null,null,null,null,null,null,null,null,223]
[null,null,null,null,null,null,null,null,null,null,null,null,null,null,null,null,null,null,null,null,null,null,null,null,null,null,224]
[null,null,null,null,null,null,null,null,null,null,null,null,null,null,null,null,null,null,null,null,null,null,null,null,null,null,225]
[null,null,null,null,null,null,null,null,null,null,null,null,null,null,null,null,null,null,null,null,null,null,null,null,null,null,226]
[null,null,null,null,null,null,null,null,null,null,null,null,null,null,null,null,null,null,null,null,null,null,null,null,null,null,227]
[null,null,null,null,null,null,null,null,null,null,null,null,null,null,null,null,null,null,null,null,null,null,null,null,null,null,228]
[null,null,null,null,null,null,null,null,null,null,null,null,null,null,null,null,null,null,null,null,null,null,null,null,null,null,229]
[null,null,null,null,null,null,null,null,null,null,null,null,null,null,null,null,null,null,null,null,null,null,null,null,null,null,230]
[null,null,null,null,null,null,null,null,null,null,null,null,null,null,null,null,null,null,null,null,null,null,null,null,null,null,231]
[null,null,null,null,null,null,null,null,null,null,null,null,null,null,null,null,null,null,null,null,null,null,null,null,null,null,232]
[null,null,null,null,null,null,null,null,null,null,null,null,null,null,null,null,null,null,null,null,null,null,null,null,null,null,233]
[null,null,null,null,null,null,null,null,null,null,null,null,null,null,null,null,null,null,null,null,null,null,null,null,null,null,234]
[null,null,null,null,null,null,null,null,null,null,null,null,null,null,null,null,null,null,null,null,null,null,null,null,null,null,235]
[null,null,null,null,null,null,null,null,null,null,null,null,null,null,null,null,null,null,null,null,null,null,null,null,null,null,236]
[null,null,null,null,null,null,null,null,null,null,null,null,null,null,null,null,null,null,null,null,null,null,null,null,null,null,237]
[null,null,null,null,null,null,null,null,null,null,null,null,null,null,null,null,null,null,null,null,null,null,null,null,null,null,238]
[null,null,null,null,null,null,null,null,null,null,null,null,null,null,null,null,null,null,null,null,null,null,null,null,null,null,239]
[null,null,null,null,null,null,null,null,null,null,null,null,null,null,null,null,null,null,null,null,null,null,null,null,null,null,240]
[null,null,null,null,null,null,null,null,null,null,null,null,null,null,null,null,null,null,null,null,null,null,null,null,null,null,241]
[null,null,null,null,null,null,null,null,null,null,null,null,null,null,null,null,null,null,null,null,null,null,null,null,null,null,242]
[null,null,null,null,null,null,null,null,null,null,null,null,null,null,null,null,null,null,null,null,null,null,null,null,null,null,243]
[null,null,null,null,null,null,null,null,null,null,null,null,null,null,null,null,null,null,null,null,null,null,null,null,null,null,244]
[null,null,null,null,null,null,null,null,null,null,null,null,null,null,null,null,null,null,null,null,null,null,null,null,null,null,245]
[null,null,null,null,null,null,null,null,null,null,null,null,null,null,null,null,null,null,null,null,null,null,null,null,null,null,246]
[null,null,null,null,null,null,null,null,null,null,null,null,null,null,null,null,null,null,null,null,null,null,null,null,null,null,247]
[null,null,null,null,null,null,null,null,null,null,null,null,null,null,null,null,null,null,null,null,null,null,null,null,null,null,248]
[null,null,null,null,null,null,null,null,null,null,null,null,null,null,null,null,null,null,null,null,null,null,null,null,null,null,249]
[null,null,null,null,null,null,null,null,null,null,null,null,null,null,null,null,null,null,null,null,null,null,null,null,null,null,250]
[null,null,null,null,null,null,null,null,null,null,null,null,null,null,null,null,null,null,null,null,null,null,null,null,null,null,251]
[null,null,null,null,null,null,null,null,null,null,null,null,null,null,null,null,null,null,null,null,null,null,null,null,null,null,252]
[null,null,null,null,null,null,null,null,null,null,null,null,null,null,null,null,null,null,null,null,null,null,null,null,null,null,253]
[null,null,null,null,null,null,null,null,null,null,null,null,null,null,null,null,null,null,null,null,null,null,null,null,null,null,254]
[null,null,null,null,null,null,null,null,null,null,null,null,null,null,null,null,null,null,null,null,null,null,null,null,null,null,255]
[null,null,null,null,null,null,null,null,null,null,null,null,null,null,null,null,null,null,null,null,null,null,null,null,null,null,256]
[null,null,null,null,null,null,null,null,null,null,null,null,null,null,null,null,null,null,null,null,null,null,null,null,null,null,257]
[null,null,null,null,null,null,null,null,null,null,null,null,null,null,null,null,null,null,null,null,null,null,null,null,null,null,258]
[null,null,null,null,null,null,null,null,null,null,null,null,null,null,null,null,null,null,null,null,null,null,null,null,null,null,259]
[null,null,null,null,null,null,null,null,null,null,null,null,null,null,null,null,null,null,null,null,null,null,null,null,null,null,260]
[null,null,null,null,null,null,null,null,null,null,null,null,null,null,null,null,null,null,null,null,null,null,null,null,null,null,261]
[null,null,null,null,null,null,null,null,null,null,null,null,null,null,null,null,null,null,null,null,null,null,null,null,null,null,262]
[null,null,null,null,null,null,null,null,null,null,null,null,null,null,null,null,null,null,null,null,null,null,null,null,null,null,263]
[null,null,null,null,null,null,null,null,null,null,null,null,null,null,null,null,null,null,null,null,null,null,null,null,null,null,264]
[null,null,null,null,null,null,null,null,null,null,null,null,null,null,null,null,null,null,null,null,null,null,null,null,null,null,265]
[null,null,null,null,null,null,null,null,null,null,null,null,null,null,null,null,null,null,null,null,null,null,null,null,null,null,266]
[null,null,null,null,null,null,null,null,null,null,null,null,null,null,null,null,null,null,null,null,null,null,null,null,null,null,267]
[null,null,null,null,null,null,null,null,null,null,null,null,null,null,null,null,null,null,null,null,null,null,null,null,null,null,268]
[null,null,null,null,null,null,null,null,null,null,null,null,null,null,null,null,null,null,null,null,null,null,null,null,null,null,269]
[null,null,null,null,null,null,null,null,null,null,null,null,null,null,null,null,null,null,null,null,null,null,null,null,null,null,270]
[null,null,null,null,null,null,null,null,null,null,null,null,null,null,null,null,null,null,null,null,null,null,null,null,null,null,271]
[null,null,null,null,null,null,null,null,null,null,null,null,null,null,null,null,null,null,null,null,null,null,null,null,null,null,272]
[null,null,null,null,null,null,null,null,null,null,null,null,null,null,null,null,null,null,null,null,null,null,null,null,null,null,273]
[null,null,null,null,null,null,null,null,null,null,null,null,null,null,null,null,null,null,null,null,null,null,null,null,null,null,274]
[null,null,null,null,null,null,null,null,null,null,null,null,null,null,null,null,null,null,null,null,null,null,null,null,null,null,275]
[null,null,null,null,null,null,null,null,null,null,null,null,null,null,null,null,null,null,null,null,null,null,null,null,null,null,276]
[null,null,null,null,null,null,null,null,null,null,null,null,null,null,null,null,null,null,null,null,null,null,null,null,null,null,277]
[null,null,null,null,null,null,null,null,null,null,null,null,null,null,null,null,null,null,null,null,null,null,null,null,null,null,278]
[null,null,null,null,null,null,null,null,null,null,null,null,null,null,null,null,null,null,null,null,null,null,null,null,null,null,279]
[null,null,null,null,null,null,null,null,null,null,null,null,null,null,null,null,null,null,null,null,null,null,null,null,null,null,280]
[null,null,null,null,null,null,null,null,null,null,null,null,null,null,null,null,null,null,null,null,null,null,null,null,null,null,281]
[null,null,null,null,null,null,null,null,null,null,null,null,null,null,null,null,null,null,null,null,null,null,null,null,null,null,282]
[null,null,null,null,null,null,null,null,null,null,null,null,null,null,null,null,null,null,null,null,null,null,null,null,null,null,283]
[null,null,null,null,null,null,null,null,null,null,null,null,null,null,null,null,null,null,null,null,null,null,null,null,null,null,284]
[null,null,null,null,null,null,null,null,null,null,null,null,null,null,null,null,null,null,null,null,null,null,null,null,null,null,285]
[null,null,null,null,null,null,null,null,null,null,null,null,null,null,null,null,null,null,null,null,null,null,null,null,null,null,286]
[null,null,null,null,null,null,null,null,null,null,null,null,null,null,null,null,null,null,null,null,null,null,null,null,null,null,287]
[null,null,null,null,null,null,null,null,null,null,null,null,null,null,null,null,null,null,null,null,null,null,null,null,null,null,288]
[null,null,null,null,null,null,null,null,null,null,null,null,null,null,null,null,null,null,null,null,null,null,null,null,null,null,289]
[null,null,null,null,null,null,null,null,null,null,null,null,null,null,null,null,null,null,null,null,null,null,null,null,null,null,290]
[null,null,null,null,null,null,null,null,null,null,null,null,null,null,null,null,null,null,null,null,null,null,null,null,null,null,291]
[null,null,null,null,null,null,null,null,null,null,null,null,null,null,null,null,null,null,null,null,null,null,null,null,null,null,292]
[null,null,null,null,null,null,null,null,null,null,null,null,null,null,null,null,null,null,null,null,null,null,null,null,null,null,293]
[null,null,null,null,null,null,null,null,null,null,null,null,null,null,null,null,null,null,null,null,null,null,null,null,null,null,294]
[null,null,null,null,null,null,null,null,null,null,null,null,null,null,null,null,null,null,null,null,null,null,null,null,null,null,295]
[null,null,null,null,null,null,null,null,null,null,null,null,null,null,null,null,null,null,null,null,null,null,null,null,null,null,296]
[null,null,null,null,null,null,null,null,null,null,null,null,null,null,null,null,null,null,null,null,null,null,null,null,null,null,297]
[null,null,null,null,null,null,null,null,null,null,null,null,null,null,null,null,null,null,null,null,null,null,null,null,null,null,298]
[null,null,null,null,null,null,null,null,null,null,null,null,null,null,null,null,null,null,null,null,null,null,null,null,null,null,299]
[null,null,null,null,null,null,null,null,null,null,null,null,null,null,null,null,null,null,null,null,null,null,null,null,null,null,300]
[null,null,null,null,null,null,null,null,null,null,null,null,null,null,null,null,null,null,null,null,null,null,null,null,null,null,301]

{"sheet":"change log","index":8,"n_rows":25,"n_cols":4,"rows_kept":25,"cut":false,"hidden":true,"merged":[]}
[null,"Versie","Datum","wijzigingen"]
[null,"02.01","2014-12-08","Perspectief conditioneel gemaakt: Verplicht bij ingevulde einddatum"]
[null,"02.01","2014-12-22","Gemeentecodes 2015 toegevoegd"]
[null,"02.01","2014-12-23","Contactgegevens toegevoegd"]
[null,"03.00","2015-02-11","Nieuwe versie op internet"]
[null,"03.01","2015-06-23","Per 1 juli 2015 alleen jeugdhulp die geboden is in natura (dus exclusief PGB)"]
[null,"03.02","2015-10-15","Nieuwe versie voor aanleveren gegevens over 2016. Gebaseerd op versie 3.0 van het informatieprotocol."]
[null,"03.03","2017-06-15","Controlesheet toegevoegd"]
[null,"04.00","2017-07-01","Versie voor de pilot rondom aanlevering van outcome variabelen. Alleen te gebruiken door pilotdeelnemers."]
[null,"05.00","2017-10-01","Nieuwe versie voor aanleveren gegevens over 2018. Gebaseerd op het Informatieprotocol Beleidsinformatie jeugd v4 (juni 2017)."]
[]
[null,null,null,"Veranderingen van 05.00 ten opzichte van versie 03.03 (15-06-2017)"]
[]
[null,null,null,"Algemene informatie"]
[null,null,null,"Gebaseerd op Informatieprotocol Jeugd van juli 2017 voor aanlevering gegevens over  2018 en later."]
[]
[null,null,null,"Jeugdhulp"]
[null,null,null,"Bij Perspectief de categorie '01 Stabilisatie van een crisissituatie' verwijderd."]
[null,null,null,"Variabele 'Gestart met crisis' toegevoegd."]
[null,null,null,"Bij verwijzer is categorie 08 aangepast: Rechter, officier van Justitie, functionaris justitiële jeugdinrichting."]
[null,null,null,"Reden beëindiging: verplicht als einddatum is ingevuld"]
[]
[null,null,null,"Nieuwe variabelen toegevoegd voor optionele aanlevering outcome-gegevens, inclusief bijbehorende codelijsten:\n- Cliënt: Cliënttevredenheid\n- Cliënt: Zonder hulp verder\n- Ouder: Cliënt tevredenheid\n- Ouder: Zonder hulp verder"]
[null,null,null,"Codelijsten"]
[null,null,null,"Gemeentecodelijst 2017 vervangen door 2018"]

{"sheet":"Rekenblad","index":9,"n_rows":144,"n_cols":4,"rows_kept":144,"cut":false,"hidden":true,"merged":[]}
["02 - Overlijden","05",null,"01 - Beëindigd volgens plan"]
["12 - Cliënt wil nu de zorg of ondersteuning (nog) niet","03",null,"02 - Voortijdig afgesloten: in overeenstemming"]
["17 - Overplaatsing (er is een melding aanvang zorg of ondersteuning)","02",null,"03 - Voortijdig afgesloten: eenzijdig door de cliënt"]
["18 - Aanbieder kan nu de zorg of ondersteuning nog niet leveren","04",null,"04 - Voortijdig afgesloten: eenzijdig door de aanbieder"]
["20 - Levering zorg of ondersteuning is beëindigd","02",null,"05 - Voortijdig afgesloten: wegens externe omstandigheden"]
["21 - Overdracht toewijzing (er is geen melding aanvang zorg of ondersteuning)","02"]
["31 - Jeugdhulp is volgens plan beëindigd","02"]
["32 - De cliënt heeft de hulp eenzijdig beëindigd","03"]
["33 - De hulpaanbieder heeft de hulp eenzijdig beëindigd","04"]
["34 - Cliënt en hulpaanbieder hebben de hulp in overeenstemming beëindigd","02"]
["35 - De hulp is wegens externe omstandigheden beëindigd (bijv. verhuizing van de cliënt)","05"]
[null,"Jamal","Rob"]
[34100,"02","02","01 - Jeugdhulp zonder verblijf, uitgevoerd door het wijk- of buurtteam"]
[35100,"11",11,"02 - Jeugdhulp zonder verblijf, ambulante jeugdhulp op locatie van de aanbieder"]
[37000,"13",13,"03 - Jeugdhulp zonder verblijf, daghulp op locatie van de aanbieder"]
[40100,"02","02","04 - Jeugdhulp zonder verblijf, jeugdhulp in het netwerk van de jeugdige"]
[51200,"04","04","11 - Jeugdhulp met verblijf, pleegzorg"]
[51300,"04","04","12 - Jeugdhulp met verblijf, gezinsgericht"]
[51400,"04","04","13 - Jeugdhulp met verblijf, gesloten plaatsing"]
[51500,"04","04","14 - Jeugdhulp met verblijf, anders dan bovenstaand"]
[61100,"12",12]
[61200,"14",12]
[61300,"14",12]
[61110,12,12]
[61210,12,12]
[61220,12,12]
[61230,12,12]
[61240,12,12]
[62100,"12",12]
[80110,"02","03"]
[80120,"02","03"]
[80210,"02","03"]
[80220,"02","03"]
[80310,"02","03"]
[80320,"02","03"]
[82100,"02","04"]
[82200,"02","04"]
[82300,"02",12]
[83100,"02","02"]
[83110,"02","02"]
[83120,"02","02"]
[83210,"02","02"]
[83220,"02","02"]
[83310,"02","02"]
[83320,"02","02"]
[83400,"02","02"]
[84110,"02","04"]
[84120,"02","04"]
[84210,"02","04"]
[84220,"02","04"]
[84310,"02","04"]
[84320,"02","04"]
[84400,"02","04"]
[85110,"02","03"]
[85120,"02","03"]
[85210,"02","03"]
[85220,"02","03"]
[85310,"02","03"]
[85320,"02","03"]
[90100,"01","02"]
[90200,"01","02"]
[90300,"01","02"]
[91000,"14",13]
[92100,"04","04"]
[92200,"04","04"]
[92300,"04","04"]
[]
[]
[]
["02 - Diagnostiek","02"]
["03 - Begeleiden","03"]
["04 - Behandelen","04"]
[]
[]
[]
["01 - Gemeentelijke toegang","01"]
["02 - Huisarts","02"]
["03 - Jeugdarts","03"]
["04 - Gecertificeerde instelling","04"]
["05 - Medisch specialist","05"]
["06 - Geen verwijzer","06"]
["07 - Onbekend","07"]
["08 - Rechter, Raad voor de Kinderbescherming of Officier van Justitie","08"]
[]
[]
["CBS-aanlevering"]
[{"$f":"MID(CELL(\"bestandsnaam\"),SEARCH(\"[\",CELL(\"Bestandsnaam\")),LEN(CELL(\"bestandsnaam\")))","v":"[Uitvraag 2018 JEUGD vs7.xlsm]Uitvraag"}]
[{"$f":"MID(CELL(\"bestandsnaam\"),SEARCH(\"[\",CELL(\"Bestandsnaam\"))+1,SEARCH(\"]\",CELL(\"Bestandsnaam\"))-SEARCH(\"[\",CELL(\"bestandsnaam\"))-1)","v":"Uitvraag 2018 JEUGD vs7.xlsm"}]
[]
[]
[34100,"02"]
[35100,"02"]
[37000,"02"]
[40100,"02"]
[51200,"02"]
[51300,"02"]
[51400,"02"]
[51500,"02"]
[61100,"02"]
[61200,"02"]
[61300,"02"]
[61110,"02"]
[61210,"02"]
[61220,"02"]
[61230,"02"]
[61240,"02"]
[62100,"02"]
[80110,"02"]
[80120,"02"]
[80210,"02"]
[80220,"02"]
[80310,"02"]
[80320,"02"]
[82100,"01"]
[82200,"01"]
[82300,"01"]
[83100,"02"]
[83110,"02"]
[83120,"02"]
[83210,"02"]
[83220,"02"]
[83310,"02"]
[83320,"02"]
[83400,"02"]
[84110,"02"]
[84120,"02"]
[84210,"02"]
[84220,"02"]
[84310,"02"]
[84320,"02"]
[84400,"02"]
[85110,"02"]
[85120,"02"]
[85210,"02"]
[85220,"02"]
[85310,"02"]
[85320,"02"]
[90100,"02"]
[90200,"02"]
[90300,"02"]
[91000,"02"]
[92100,"02"]
[92200,"02"]
[92300,"02"]

{"sheet":"Blad1 (2)","index":10,"n_rows":27,"n_cols":6,"rows_kept":27,"cut":false,"hidden":true,"merged":[]}
[{"$f":"Versleutelmodule!A8","v":967864975},{"$f":"IF(B13=\"\",B14,B13)","v":""},{"$f":"CONCATENATE(D11,D10,D9,D8,D7,D6,D5,D4,D3,)","v":"410546171168336272651402153"},{"$f":"C1/A1","v":4.2417711330894688E+17},{"$f":"D1*100","v":4.2417711330894684E+19},{"$f":"IF(LEN(ABS(MID(E1,1,11)))=10,CONCATENATE(0,ABS(MID(E1,1,11))),IF(LEN(ABS(MID(E1,1,11)))=9,CONCATENATE(0,0,ABS(MID(E1,1,11))),MID(E1,1,11)))","v":"42417711330"}]
["BSN","proef van 11","Sleutel","Versleuteld",null,{"$f":"IF(A15<>\"Geen geldig BSN\",CONCATENATE(\"ID\",F1),A1)","v":"ID42417711330"}]
[{"$f":"IF(LEN(A1)=8,0,MID(A$1,ROW(A1),1))","v":"9"},9,17,{"$f":"A3*C3","v":153}]
[{"$f":"IF(IF(LEN(A$1)=8,MID(A$1,ROW(A1),1),MID(A$1,ROW(A2),1))=\"\",0,IF(LEN(A$1)=8,MID(A$1,ROW(A1),1),MID(A$1,ROW(A2),1)))","v":"6"},8,67,{"$f":"A4*C4","v":402}]
["7",7,93,651]
["8",6,34,272]
["6",5,56,336]
["4",4,42,168]
["9",3,19,171]
["7",2,78,546]
["5",-1,82,410]
[{"$f":"MID(A$1,ROW(A11),ROW(A11))","v":""},{"$f":"((A3*B3)+(A4*B4)+(A5*B5)+(A6*B6)+(A7*B7)+(A8*B8)+(A9*B9)+(A10*B10)+(A11*B11))/11","v":28},{"$f":"(A3*B3)+(A4*B4)+(A5*B5)+(A6*B6)+(A7*B7)+(A8*B8)+(A9*B9)+(A10*B10)+(A11*B11)","v":308}]
[null,{"$f":"IFERROR(IF(B12-MID(B12,1,2)>0,\"Geen geldig BSN\",\"\"),\"Geen geldig BSN\")","v":""}]
[null,{"$f":"IF(OR(LEN(A1)>9,LEN(A1)<8),\"Geen geldig BSN\",\"\")","v":""}]
[{"$f":"IF(B14=\"Geen geldig BSN\",\"Geen geldig BSN\",IF(B13=\"Geen geldig BSN\",\"Geen geldig BSN\",\"Succesvol\"))","v":"Succesvol"},{"$f":"IF(LEFT(F2,2)=\"ID\",\"Succesvol\",A15)","v":"Succesvol"}]
[]
[]
[]
[]
[]
[]
[]
["minuut","Ja","ZIN"]
["uur","Nee","PGB"]
["dagdeel"]
["etmaal"]
["dag"]

{"sheet":"Versleutelmodule","index":11,"n_rows":8,"n_cols":3,"rows_kept":8,"cut":false,"hidden":true,"merged":[]}
[]
["BSN versleutelmodule"]
[]
[]
[]
[]
["Invoer",null,"Uitkomst"]
[967864975,{"$f":"IF('Blad1 (2)'!B13=\"\",'Blad1 (2)'!B14,'Blad1 (2)'!B13)","v":""},{"$f":"IF(B8=\"Geen geldig BSN\",\"FOUT!\",'Blad1 (2)'!F1)","v":"42417711330"}]